[Event "FIDE Women's Grand Swiss 2023"]
[Site "Villa Marina, Douglas, Isle of Man, Isle Of Man"]
[Date "2023.11.03"]
[Round "9.8"]
[White "Shuvalova, Polina"]
[Black "Javakhishvili, Lela"]
[Result "0-1"]
[TimeControl "40/90 + 30 + 30s/move"]
[WhiteFideId "24171760"]
[BlackFideId "13601458"]
[WhiteElo "2506"]
[BlackElo "2437"]

1. e4 {[%clk 01:30:56]} {[%emt 00:00:03]} c5 {[%clk 01:30:42]} {[%emt
00:00:18]} 2. Nf3 {[%clk 01:31:21]} {[%emt 00:00:05]} Nc6 {[%clk 01:31:01]}
{[%emt 00:00:11]} 3. Bb5 {[%clk 01:31:46]} {[%emt 00:00:06]} e6 {[%clk
01:31:22]} {[%emt 00:00:09]} 4. O-O {[%clk 01:30:11]} {[%emt 00:02:05]} Nge7
{[%clk 01:31:44]} {[%emt 00:00:07]} 5. Re1 {[%clk 01:29:44]} {[%emt 00:00:57]}
Nd4 {[%clk 01:31:49]} {[%emt 00:00:25]} 6. Nxd4 {[%clk 01:16:41]} {[%emt
00:13:33]} cxd4 {[%clk 01:32:07]} {[%emt 00:00:13]} 7. c3 {[%clk 01:13:06]}
{[%emt 00:04:05]} a6 {[%clk 01:30:05]} {[%emt 00:02:32]} 8. Bf1 {[%clk
01:13:27]} {[%emt 00:00:08]} Nc6 {[%clk 01:30:30]} {[%emt 00:00:05]} 9. d3
{[%clk 01:08:42]} {[%emt 00:05:16]} Bc5 {[%clk 01:25:10]} {[%emt 00:05:50]} 10.
Nd2 {[%clk 01:06:59]} {[%emt 00:02:13]} d6 {[%clk 01:21:28]} {[%emt 00:04:12]}
11. Nb3 {[%clk 01:01:59]} {[%emt 00:05:30]} Ba7 {[%clk 01:20:31]} {[%emt
00:01:26]} 12. cxd4 {[%clk 00:59:43]} {[%emt 00:02:46]} O-O {[%clk 01:19:12]}
{[%emt 00:01:49]} 13. Be3 {[%clk 00:56:22]} {[%emt 00:03:51]} a5 {[%clk
01:17:10]} {[%emt 00:02:33]} 14. a4 {[%clk 00:54:06]} {[%emt 00:02:46]} Bd7
{[%clk 01:16:43]} {[%emt 00:00:56]} 15. f4 {[%clk 00:42:07]} {[%emt 00:12:29]}
Qb8 {[%clk 01:11:10]} {[%emt 00:06:03]} 16. Kh1 {[%clk 00:31:25]} {[%emt
00:11:11]} Rc8 {[%clk 01:01:23]} {[%emt 00:10:16]} 17. Qh5 {[%clk 00:28:13]}
{[%emt 00:03:42]} Nb4 {[%clk 00:54:14]} {[%emt 00:07:39]} 18. f5 {[%clk
00:26:55]} {[%emt 00:01:49]} exf5 {[%clk 00:53:34]} {[%emt 00:01:09]} 19. exf5
{[%clk 00:25:01]} {[%emt 00:02:24]} Nd5 {[%clk 00:51:21]} {[%emt 00:02:43]} 20.
Bg1 {[%clk 00:23:10]} {[%emt 00:02:21]} Nf6 {[%clk 00:41:56]} {[%emt 00:09:55]}
21. Qg5 {[%clk 00:22:58]} {[%emt 00:00:42]} Rc2 {[%clk 00:37:07]} {[%emt
00:05:19]} 22. Nxa5 {[%clk 00:22:45]} {[%emt 00:00:44]} d5 {[%clk 00:37:08]}
{[%emt 00:00:28]} 23. b4 {[%clk 00:18:26]} {[%emt 00:04:49]} h6 {[%clk
00:34:53]} {[%emt 00:02:45]} 24. Qh4 {[%clk 00:18:11]} {[%emt 00:00:45]} Bxf5
{[%clk 00:32:58]} {[%emt 00:02:26]} 25. Re7 {[%clk 00:16:52]} {[%emt 00:01:49]}
b6 {[%clk 00:32:53]} {[%emt 00:00:35]} 26. Nb3 {[%clk 00:15:20]} {[%emt
00:02:01]} Rb2 {[%clk 00:28:13]} {[%emt 00:05:10]} 27. Re5 {[%clk 00:12:18]}
{[%emt 00:03:33]} Bd7 {[%clk 00:26:41]} {[%emt 00:02:02]} 28. Nc1 {[%clk
00:11:43]} {[%emt 00:01:05]} Rxb4 {[%clk 00:26:47]} {[%emt 00:00:24]} 29. Ne2
{[%clk 00:10:47]} {[%emt 00:01:26]} Qxe5 {[%clk 00:25:59]} {[%emt 00:01:18]} 30.
dxe5 {[%clk 00:11:07]} {[%emt 00:00:11]} Rxh4 {[%clk 00:26:22]} {[%emt
00:00:06]} 31. exf6 {[%clk 00:11:33]} {[%emt 00:00:04]} Rxa4 {[%clk 00:26:32]}
{[%emt 00:00:20]} 32. Rb1 {[%clk 00:10:43]} {[%emt 00:01:21]} Rc8 {[%clk
00:23:33]} {[%emt 00:03:29]} 33. Bxb6 {[%clk 00:08:06]} {[%emt 00:03:07]} Rb8
{[%clk 00:22:48]} {[%emt 00:01:15]} 34. Nc3 {[%clk 00:08:32]} {[%emt 00:00:04]}
Rxb6 {[%clk 00:22:27]} {[%emt 00:00:50]} 0-1

[Event "FIDE Women's Grand Swiss 2023"]
[Site "Villa Marina, Douglas, Isle of Man, Isle Of Man"]
[Date "2023.11.03"]
[Round "9.9"]
[White "Cramling, Pia"]
[Black "Guichard, Pauline"]
[Result "1-0"]
[TimeControl "40/90 + 30 + 30s/move"]
[WhiteFideId "1700030"]
[BlackFideId "639370"]
[WhiteElo "2446"]
[BlackElo "2358"]

1. Nf3 {[%clk 01:30:54]} {[%emt 00:00:05]} Nf6 {[%clk 01:30:51]} {[%emt
00:00:10]} 2. c4 {[%clk 01:31:12]} {[%emt 00:00:12]} e6 {[%clk 01:31:06]}
{[%emt 00:00:15]} 3. g3 {[%clk 01:30:49]} {[%emt 00:00:53]} d5 {[%clk
01:30:48]} {[%emt 00:00:48]} 4. Bg2 {[%clk 01:31:03]} {[%emt 00:00:15]} Be7
{[%clk 01:31:03]} {[%emt 00:00:16]} 5. O-O {[%clk 01:29:04]} {[%emt 00:02:29]}
O-O {[%clk 01:31:15]} {[%emt 00:00:18]} 6. d4 {[%clk 01:29:02]} {[%emt
00:00:32]} dxc4 {[%clk 01:31:25]} {[%emt 00:00:20]} 7. Ne5 {[%clk 01:28:31]}
{[%emt 00:01:00]} Nc6 {[%clk 01:31:26]} {[%emt 00:00:30]} 8. Nxc6 {[%clk
01:28:18]} {[%emt 00:00:44]} bxc6 {[%clk 01:31:48]} {[%emt 00:00:08]} 9. Na3
{[%clk 01:28:23]} {[%emt 00:00:24]} Bxa3 {[%clk 01:31:38]} {[%emt 00:00:41]} 10.
bxa3 {[%clk 01:28:49]} {[%emt 00:00:04]} Ba6 {[%clk 01:24:22]} {[%emt
00:07:46]} 11. Qd2 {[%clk 01:24:11]} {[%emt 00:05:07]} Rb8 {[%clk 01:23:52]}
{[%emt 00:01:00]} 12. Qa5 {[%clk 01:24:09]} {[%emt 00:00:30]} Qc8 {[%clk
01:23:41]} {[%emt 00:00:43]} 13. a4 {[%clk 01:23:49]} {[%emt 00:00:50]} Rd8
{[%clk 01:21:57]} {[%emt 00:02:14]} 14. Rd1 {[%clk 01:22:57]} {[%emt 00:01:21]}
c3 {[%clk 01:13:55]} {[%emt 00:08:33]} 15. Qxc3 {[%clk 01:20:23]} {[%emt
00:03:04]} Bxe2 {[%clk 01:12:47]} {[%emt 00:01:38]} 16. Re1 {[%clk 01:09:20]}
{[%emt 00:11:32]} Qa6 {[%clk 01:12:33]} {[%emt 00:00:44]} 17. Qxc6 {[%clk
00:56:39]} {[%emt 00:13:10]} Nd5 {[%clk 01:02:06]} {[%emt 00:10:58]} 18. Qxa6
{[%clk 00:56:29]} {[%emt 00:00:41]} Bxa6 {[%clk 01:02:31]} {[%emt 00:00:05]} 19.
Bg5 {[%clk 00:56:26]} {[%emt 00:00:32]} f6 {[%clk 00:52:57]} {[%emt 00:10:05]}
20. Bd2 {[%clk 00:55:30]} {[%emt 00:01:25]} Kf7 {[%clk 00:53:05]} {[%emt
00:00:23]} 21. Rec1 {[%clk 00:51:08]} {[%emt 00:04:51]} Rd7 {[%clk 00:43:44]}
{[%emt 00:09:52]} 22. Rc5 {[%clk 00:48:29]} {[%emt 00:03:08]} Rb2 {[%clk
00:34:00]} {[%emt 00:10:15]} 23. Be1 {[%clk 00:47:16]} {[%emt 00:01:43]} Bd3
{[%clk 00:31:41]} {[%emt 00:02:50]} 24. h3 {[%clk 00:34:58]} {[%emt 00:12:47]}
h5 {[%clk 00:26:18]} {[%emt 00:05:53]} 25. h4 {[%clk 00:21:14]} {[%emt
00:14:14]} Kg6 {[%clk 00:19:44]} {[%emt 00:07:04]} 26. a3 {[%clk 00:20:59]}
{[%emt 00:00:44]} Nb6 {[%clk 00:14:19]} {[%emt 00:05:55]} 27. Bf3 {[%clk
00:15:35]} {[%emt 00:05:52]} f5 {[%clk 00:12:01]} {[%emt 00:02:49]} 28. Bb4
{[%clk 00:08:34]} {[%emt 00:07:31]} Nd5 {[%clk 00:11:30]} {[%emt 00:01:02]} 29.
Re1 {[%clk 00:08:32]} {[%emt 00:00:31]} Nf6 {[%clk 00:08:11]} {[%emt 00:03:50]}
30. Rxe6 {[%clk 00:07:52]} {[%emt 00:01:09]} Rxd4 {[%clk 00:07:31]} {[%emt
00:01:10]} 31. Rxc7 {[%clk 00:05:09]} {[%emt 00:03:13]} Rb1+ {[%clk 00:07:55]}
{[%emt 00:00:07]} 32. Kg2 {[%clk 00:05:14]} {[%emt 00:00:24]} Bf1+ {[%clk
00:05:48]} {[%emt 00:02:38]} 33. Kh2 {[%clk 00:05:37]} {[%emt 00:00:05]} f4
{[%clk 00:01:21]} {[%emt 00:04:59]} 34. g4 {[%clk 00:02:55]} {[%emt 00:03:11]}
hxg4 {[%clk 00:01:19]} {[%emt 00:00:34]} 35. Bxg4 {[%clk 00:03:23]} {[%emt
00:00:01]} f3 {[%clk 00:00:54]} {[%emt 00:00:55]} 36. h5+ {[%clk 00:02:37]}
{[%emt 00:01:15]} Kh6 {[%clk 00:01:13]} {[%emt 00:00:11]} 37. Bxf3 {[%clk
00:02:51]} {[%emt 00:00:16]} Rb3 {[%clk 00:01:04]} {[%emt 00:00:39]} 38. Bc3
{[%clk 00:02:35]} {[%emt 00:00:46]} Rf4 {[%clk 00:00:44]} {[%emt 00:00:50]} 39.
Kg3 {[%clk 00:01:50]} {[%emt 00:01:14]} Rf5 {[%clk 00:01:00]} {[%emt 00:00:16]}
40. Bg4 {[%clk 00:00:47]} {[%emt 00:01:31]} Rg5 {[%clk 00:00:33]} {[%emt
00:00:58]} 41. f3 {[%clk 00:00:53]} {[%emt 00:00:24]} 1-0

[Event "FIDE Women's Grand Swiss 2023"]
[Site "Villa Marina, Douglas, Isle of Man, Isle Of Man"]
[Date "2023.11.03"]
[Round "9.10"]
[White "Bulmaga, Irina"]
[Black "Mammadzada, Gunay"]
[Result "0-1"]
[TimeControl "40/90 + 30 + 30s/move"]
[WhiteFideId "13903063"]
[BlackFideId "13403729"]
[WhiteElo "2423"]
[BlackElo "2441"]

1. e4 {[%clk 01:30:56]} {[%emt 00:00:03]} c5 {[%clk 01:30:50]} {[%emt
00:00:11]} 2. Nf3 {[%clk 01:31:18]} {[%emt 00:00:07]} d6 {[%clk 01:31:13]}
{[%emt 00:00:08]} 3. d4 {[%clk 01:31:36]} {[%emt 00:00:11]} cxd4 {[%clk
01:31:36]} {[%emt 00:00:07]} 4. Nxd4 {[%clk 01:31:58]} {[%emt 00:00:07]} Nf6
{[%clk 01:31:56]} {[%emt 00:00:10]} 5. Nc3 {[%clk 01:32:20]} {[%emt 00:00:08]}
a6 {[%clk 01:32:21]} {[%emt 00:00:06]} 6. Bc4 {[%clk 01:32:30]} {[%emt
00:00:18]} e6 {[%clk 01:32:37]} {[%emt 00:00:15]} 7. Bb3 {[%clk 01:32:44]}
{[%emt 00:00:16]} Be7 {[%clk 01:32:13]} {[%emt 00:00:54]} 8. f4 {[%clk
01:31:42]} {[%emt 00:01:32]} O-O {[%clk 01:28:40]} {[%emt 00:04:05]} 9. e5
{[%clk 01:29:26]} {[%emt 00:02:45]} dxe5 {[%clk 01:14:52]} {[%emt 00:14:19]} 10.
fxe5 {[%clk 01:29:46]} {[%emt 00:00:09]} Nfd7 {[%clk 01:15:15]} {[%emt
00:00:08]} 11. Bf4 {[%clk 01:23:51]} {[%emt 00:06:25]} Bg5 {[%clk 01:07:02]}
{[%emt 00:08:40]} 12. Qd2 {[%clk 01:16:02]} {[%emt 00:08:22]} Bxf4 {[%clk
01:06:45]} {[%emt 00:00:47]} 13. Qxf4 {[%clk 01:16:29]} {[%emt 00:00:03]} Qa5
{[%clk 01:06:55]} {[%emt 00:00:20]} 14. Nf3 {[%clk 01:09:27]} {[%emt 00:07:31]}
Nc6 {[%clk 01:06:48]} {[%emt 00:00:38]} 15. O-O-O {[%clk 01:07:58]} {[%emt
00:01:59]} Ncxe5 {[%clk 01:02:22]} {[%emt 00:04:56]} 16. Ne4 {[%clk 00:58:40]}
{[%emt 00:09:47]} Ng6 {[%clk 00:47:17]} {[%emt 00:15:35]} 17. Qe3 {[%clk
00:55:21]} {[%emt 00:03:49]} Qc7 {[%clk 00:47:11]} {[%emt 00:00:35]} 18. Rd6
{[%clk 00:49:09]} {[%emt 00:06:43]} a5 {[%clk 00:43:23]} {[%emt 00:04:18]} 19.
Nfg5 {[%clk 00:44:52]} {[%emt 00:04:47]} Nde5 {[%clk 00:28:28]} {[%emt
00:15:26]} 20. a4 {[%clk 00:31:32]} {[%emt 00:13:49]} h6 {[%clk 00:21:50]}
{[%emt 00:07:08]} 21. Nf3 {[%clk 00:29:25]} {[%emt 00:02:37]} Nxf3 {[%clk
00:14:45]} {[%emt 00:07:35]} 22. gxf3 {[%clk 00:29:05]} {[%emt 00:00:50]} Bd7
{[%clk 00:13:22]} {[%emt 00:01:54]} 23. Rg1 {[%clk 00:21:10]} {[%emt 00:08:25]}
Bc6 {[%clk 00:12:45]} {[%emt 00:01:08]} 24. Qc5 {[%clk 00:10:29]} {[%emt
00:11:10]} Rad8 {[%clk 00:11:04]} {[%emt 00:02:11]} 25. Bxe6 {[%clk 00:04:23]}
{[%emt 00:06:36]} fxe6 {[%clk 00:09:59]} {[%emt 00:01:35]} 26. Rxg6 {[%clk
00:04:41]} {[%emt 00:00:12]} Rxd6 {[%clk 00:09:27]} {[%emt 00:01:03]} 27. Nxd6
{[%clk 00:04:52]} {[%emt 00:00:19]} Rxf3 {[%clk 00:07:47]} {[%emt 00:02:10]} 28.
Rxe6 {[%clk 00:04:47]} {[%emt 00:00:35]} Rf1+ {[%clk 00:07:57]} {[%emt
00:00:20]} 29. Kd2 {[%clk 00:05:07]} {[%emt 00:00:10]} Rd1+ {[%clk 00:03:07]}
{[%emt 00:05:18]} 30. Kc3 {[%clk 00:05:26]} {[%emt 00:00:12]} Qd8 {[%clk
00:03:26]} {[%emt 00:00:11]} 31. Qe5 {[%clk 00:02:48]} {[%emt 00:03:08]} Rd5
{[%clk 00:01:19]} {[%emt 00:02:37]} 32. Qf4 {[%clk 00:01:05]} {[%emt 00:02:13]}
Rc5+ {[%clk 00:01:08]} {[%emt 00:00:41]} 33. Kd4 {[%clk 00:01:29]} {[%emt
00:00:06]} Rd5+ {[%clk 00:00:57]} {[%emt 00:00:40]} 34. Kc3 {[%clk 00:01:38]}
{[%emt 00:00:22]} Rc5+ {[%clk 00:00:52]} {[%emt 00:00:36]} 35. Kd4 {[%clk
00:01:00]} {[%emt 00:01:07]} Rxc2 {[%clk 00:00:33]} {[%emt 00:00:50]} 36. Qf7+
{[%clk 00:00:46]} {[%emt 00:00:44]} Kh8 {[%clk 00:01:02]} 37. Kd3 {[%clk
00:00:43]} {[%emt 00:00:34]} Rc5 {[%clk 00:00:49]} {[%emt 00:00:42]} 38. Ke2
{[%clk 00:00:46]} {[%emt 00:00:28]} Qg5 {[%clk 00:00:36]} {[%emt 00:00:43]} 39.
Ne4 {[%clk 00:00:34]} {[%emt 00:00:42]} Bxe4 {[%clk 00:00:34]} {[%emt
00:00:33]} 40. Re8+ {[%clk 00:00:51]} {[%emt 00:00:13]} Kh7 {[%clk 00:01:02]}
{[%emt 00:00:02]} 41. Qg8+ {[%clk 00:28:46]} {[%emt 00:02:35]} Kg6 {[%clk
00:31:31]} {[%emt 00:00:02]} 42. Qe6+ {[%clk 00:20:29]} {[%emt 00:08:46]} Qf6
{[%clk 00:26:43]} {[%emt 00:05:13]} 43. Qg4+ {[%clk 00:14:09]} {[%emt
00:06:55]} Rg5 {[%clk 00:26:41]} {[%emt 00:00:32]} 44. Qxe4+ {[%clk 00:13:45]}
{[%emt 00:00:54]} Kf7 {[%clk 00:24:26]} {[%emt 00:02:44]} 45. Kd3 {[%clk
00:11:20]} {[%emt 00:02:57]} Rc5 {[%clk 00:24:02]} {[%emt 00:00:53]} 46. Ke3
{[%clk 00:08:16]} {[%emt 00:03:36]} Rh5 {[%clk 00:18:49]} {[%emt 00:05:41]} 47.
Qg4 {[%clk 00:01:57]} {[%emt 00:06:51]} Re5+ {[%clk 00:16:24]} {[%emt
00:02:54]} 48. Rxe5 {[%clk 00:02:12]} {[%emt 00:00:15]} Qxe5+ {[%clk 00:16:54]}
{[%emt 00:00:02]} 49. Kd3 {[%clk 00:01:34]} {[%emt 00:01:08]} Qxb2 {[%clk
00:14:50]} {[%emt 00:02:33]} 50. Qc4+ {[%clk 00:01:23]} {[%emt 00:00:42]} Kf6
{[%clk 00:14:46]} {[%emt 00:00:34]} 51. Qf4+ {[%clk 00:00:39]} {[%emt
00:01:15]} Ke6 {[%clk 00:15:11]} {[%emt 00:00:04]} 52. Qc4+ {[%clk 00:00:36]}
{[%emt 00:00:34]} Kd6 {[%clk 00:15:26]} {[%emt 00:00:14]} 53. Qf4+ {[%clk
00:00:41]} {[%emt 00:00:27]} Qe5 {[%clk 00:15:43]} {[%emt 00:00:13]} 54. Qf8+
{[%clk 00:01:04]} {[%emt 00:00:07]} Kc6 {[%clk 00:15:55]} {[%emt 00:00:17]} 55.
Qc8+ {[%clk 00:01:19]} {[%emt 00:00:16]} Qc7 {[%clk 00:16:05]} {[%emt
00:00:20]} 56. Qg8 {[%clk 00:01:13]} {[%emt 00:00:36]} Qd6+ {[%clk 00:16:04]}
{[%emt 00:00:31]} 57. Ke4 {[%clk 00:01:13]} {[%emt 00:00:30]} g6 {[%clk
00:11:36]} {[%emt 00:04:58]} 58. Qc8+ {[%clk 00:01:01]} {[%emt 00:00:42]} Kb6
{[%clk 00:11:59]} {[%emt 00:00:06]} 59. Qh8 {[%clk 00:01:07]} {[%emt 00:00:24]}
h5 {[%clk 00:11:23]} {[%emt 00:01:06]} 60. Qg8 {[%clk 00:01:14]} {[%emt
00:00:22]} Qxh2 {[%clk 00:10:13]} {[%emt 00:01:40]} 61. Qxg6+ {[%clk 00:01:05]}
{[%emt 00:00:40]} Ka7 {[%clk 00:10:43]} 62. Qh6 {[%clk 00:00:34]} {[%emt
00:01:01]} Qh4+ {[%clk 00:10:45]} {[%emt 00:00:27]} 63. Ke3 {[%clk 00:00:33]}
{[%emt 00:00:32]} Qg3+ {[%clk 00:09:47]} {[%emt 00:01:28]} 64. Ke2 {[%clk
00:00:35]} {[%emt 00:00:29]} Qg4+ {[%clk 00:10:08]} {[%emt 00:00:09]} 65. Ke1
{[%clk 00:00:37]} {[%emt 00:00:27]} Qe4+ {[%clk 00:10:18]} {[%emt 00:00:19]} 66.
Kf2 {[%clk 00:00:44]} {[%emt 00:00:23]} h4 {[%clk 00:10:29]} {[%emt 00:00:19]}
67. Qg5 {[%clk 00:00:33]} {[%emt 00:00:41]} Qxa4 {[%clk 00:10:28]} {[%emt
00:00:32]} 68. Qe3+ {[%clk 00:01:00]} {[%emt 00:00:02]} Ka6 {[%clk 00:10:44]}
{[%emt 00:00:12]} 69. Qh6+ {[%clk 00:00:59]} {[%emt 00:00:32]} b6 {[%clk
00:10:56]} {[%emt 00:00:18]} 70. Qe6 {[%clk 00:01:04]} {[%emt 00:00:25]} Qd4+
{[%clk 00:11:11]} {[%emt 00:00:14]} 71. Kg2 {[%clk 00:01:11]} {[%emt 00:00:23]}
a4 {[%clk 00:10:43]} {[%emt 00:00:59]} 72. Qc8+ {[%clk 00:01:09]} {[%emt
00:00:32]} Ka5 {[%clk 00:10:23]} {[%emt 00:00:50]} 73. Qa8+ {[%clk 00:01:37]}
{[%emt 00:00:03]} Kb4 {[%clk 00:10:48]} {[%emt 00:00:04]} 74. Qf8+ {[%clk
00:02:01]} {[%emt 00:00:07]} Kc4 {[%clk 00:08:41]} {[%emt 00:02:35]} 75. Qc8+
{[%clk 00:01:48]} {[%emt 00:00:45]} Kd3 {[%clk 00:08:05]} {[%emt 00:01:05]} 76.
Kh1 {[%clk 00:00:37]} {[%emt 00:01:42]} Kd2 {[%clk 00:05:19]} {[%emt 00:03:17]}
77. Qc6 {[%clk 00:00:42]} {[%emt 00:00:25]} a3 {[%clk 00:05:12]} {[%emt
00:00:36]} 78. Qh6+ {[%clk 00:01:02]} {[%emt 00:00:12]} Qe3 {[%clk 00:04:40]}
{[%emt 00:01:00]} 79. Qd6+ {[%clk 00:01:17]} {[%emt 00:00:17]} Ke2 {[%clk
00:04:59]} {[%emt 00:00:11]} 80. Qh2+ {[%clk 00:01:08]} {[%emt 00:00:39]} Kd1
{[%clk 00:04:20]} {[%emt 00:01:07]} 81. Qd6+ {[%clk 00:01:04]} {[%emt
00:00:35]} Qd2 {[%clk 00:02:46]} {[%emt 00:02:03]} 82. Qf6 {[%clk 00:00:42]}
{[%emt 00:00:54]} Kc2 {[%clk 00:01:43]} {[%emt 00:01:31]} 83. Qc6+ {[%clk
00:00:47]} {[%emt 00:00:25]} Qc3 {[%clk 00:01:58]} {[%emt 00:00:16]} 84. Qg6+
{[%clk 00:00:45]} {[%emt 00:00:32]} Kd2 {[%clk 00:01:36]} {[%emt 00:00:52]} 85.
Qg2+ {[%clk 00:00:56]} {[%emt 00:00:19]} Kc1 {[%clk 00:01:32]} {[%emt
00:00:33]} 86. Qg1+ {[%clk 00:01:15]} {[%emt 00:00:12]} Kc2 {[%clk 00:00:49]}
{[%emt 00:01:14]} 87. Qf2+ {[%clk 00:01:39]} {[%emt 00:00:05]} Kd1 {[%clk
00:01:04]} {[%emt 00:00:14]} 88. Qf7 {[%clk 00:00:33]} {[%emt 00:01:36]} h3
{[%clk 00:00:47]} {[%emt 00:00:47]} 89. Qd5+ {[%clk 00:00:36]} {[%emt
00:00:27]} Kc1 {[%clk 00:01:08]} {[%emt 00:00:09]} 90. Qg5+ {[%clk 00:00:34]}
{[%emt 00:00:32]} Qd2 {[%clk 00:01:25]} {[%emt 00:00:12]} 0-1

[Event "FIDE Women's Grand Swiss 2023"]
[Site "Villa Marina, Douglas, Isle of Man, Isle Of Man"]
[Date "2023.11.03"]
[Round "9.11"]
[White "Socko, Monika"]
[Black "Dronavalli, Harika"]
[Result "1/2-1/2"]
[TimeControl "40/90 + 30 + 30s/move"]
[WhiteFideId "1106619"]
[BlackFideId "5015197"]
[WhiteElo "2380"]
[BlackElo "2502"]

1. d4 {[%clk 01:30:55]} {[%emt 00:00:04]} d5 {[%clk 01:30:42]} {[%emt
00:00:18]} 2. Nf3 {[%clk 01:31:18]} {[%emt 00:00:07]} Nf6 {[%clk 01:30:57]}
{[%emt 00:00:15]} 3. g3 {[%clk 01:31:43]} {[%emt 00:00:05]} c6 {[%clk
01:24:11]} {[%emt 00:07:17]} 4. Bg2 {[%clk 01:31:38]} {[%emt 00:00:36]} Bf5
{[%clk 01:21:06]} {[%emt 00:03:34]} 5. O-O {[%clk 01:31:41]} {[%emt 00:00:26]}
h6 {[%clk 01:21:27]} {[%emt 00:00:11]} 6. c4 {[%clk 01:30:57]} {[%emt
00:01:14]} e6 {[%clk 01:21:47]} {[%emt 00:00:10]} 7. Qb3 {[%clk 01:27:59]}
{[%emt 00:03:28]} Qb6 {[%clk 01:20:25]} {[%emt 00:01:51]} 8. c5 {[%clk
01:25:33]} {[%emt 00:02:56]} Qa6 {[%clk 01:17:55]} {[%emt 00:03:00]} 9. Re1
{[%clk 01:24:41]} {[%emt 00:01:22]} b6 {[%clk 01:17:43]} {[%emt 00:00:43]} 10.
e4 {[%clk 01:11:42]} {[%emt 00:13:29]} Bxe4 {[%clk 01:06:25]} {[%emt 00:11:47]}
11. Bf1 {[%clk 01:11:05]} {[%emt 00:01:07]} Qb7 {[%clk 01:04:46]} {[%emt
00:02:09]} 12. Nbd2 {[%clk 01:09:53]} {[%emt 00:01:42]} Bf5 {[%clk 01:00:19]}
{[%emt 00:04:58]} 13. a4 {[%clk 01:03:54]} {[%emt 00:06:29]} Be7 {[%clk
00:48:43]} {[%emt 00:12:06]} 14. a5 {[%clk 01:00:24]} {[%emt 00:03:59]} Nbd7
{[%clk 00:48:03]} {[%emt 00:01:11]} 15. Nh4 {[%clk 00:47:35]} {[%emt 00:13:20]}
Bh7 {[%clk 00:47:09]} {[%emt 00:01:23]} 16. f4 {[%clk 00:42:28]} {[%emt
00:05:37]} Ne4 {[%clk 00:41:08]} {[%emt 00:06:31]} 17. Ndf3 {[%clk 00:42:19]}
{[%emt 00:00:39]} O-O {[%clk 00:38:01]} {[%emt 00:03:38]} 18. Be3 {[%clk
00:38:03]} {[%emt 00:04:45]} Rfb8 {[%clk 00:32:52]} {[%emt 00:05:40]} 19. cxb6
{[%clk 00:37:10]} {[%emt 00:01:23]} axb6 {[%clk 00:33:17]} {[%emt 00:00:05]} 20.
a6 {[%clk 00:37:10]} {[%emt 00:00:30]} Qc7 {[%clk 00:33:34]} {[%emt 00:00:13]}
21. Rec1 {[%clk 00:36:27]} {[%emt 00:01:13]} Nd6 {[%clk 00:26:14]} {[%emt
00:07:51]} 22. Ne5 {[%clk 00:29:39]} {[%emt 00:07:18]} Nxe5 {[%clk 00:25:29]}
{[%emt 00:01:15]} 23. fxe5 {[%clk 00:29:31]} {[%emt 00:00:37]} Ne4 {[%clk
00:15:35]} {[%emt 00:10:24]} 24. Nf3 {[%clk 00:27:39]} {[%emt 00:02:22]} b5
{[%clk 00:14:10]} {[%emt 00:01:55]} 25. Bd3 {[%clk 00:25:58]} {[%emt 00:02:10]}
Qb6 {[%clk 00:10:53]} {[%emt 00:03:48]} 26. Qc2 {[%clk 00:26:18]} {[%emt
00:00:09]} Rc8 {[%clk 00:09:41]} {[%emt 00:01:42]} 27. h4 {[%clk 00:18:34]}
{[%emt 00:08:15]} Rxa6 {[%clk 00:05:03]} {[%emt 00:05:09]} 28. Rxa6 {[%clk
00:19:00]} {[%emt 00:00:03]} Qxa6 {[%clk 00:05:30]} {[%emt 00:00:03]} 29. Nd2
{[%clk 00:19:25]} {[%emt 00:00:04]} Qa2 {[%clk 00:04:20]} {[%emt 00:01:35]} 30.
Rf1 {[%clk 00:11:22]} {[%emt 00:08:38]} c5 {[%clk 00:03:48]} {[%emt 00:01:03]}
31. Nxe4 {[%clk 00:08:30]} {[%emt 00:03:21]} Bxe4 {[%clk 00:03:19]} {[%emt
00:00:58]} 32. Bxe4 {[%clk 00:07:41]} {[%emt 00:01:19]} dxe4 {[%clk 00:03:46]}
{[%emt 00:00:04]} 33. dxc5 {[%clk 00:06:38]} {[%emt 00:01:32]} Qd5 {[%clk
00:03:40]} {[%emt 00:00:35]} 34. Qf2 {[%clk 00:07:06]} {[%emt 00:00:03]} Kh7
{[%clk 00:02:11]} {[%emt 00:01:59]} 35. b4 {[%clk 00:06:36]} {[%emt 00:01:00]}
f5 {[%clk 00:00:37]} {[%emt 00:02:04]} 36. exf6 {[%clk 00:06:55]} {[%emt
00:00:10]} Bxf6 {[%clk 00:01:05]} {[%emt 00:00:04]} 37. Qe2 {[%clk 00:05:27]}
{[%emt 00:01:57]} Qd3 {[%clk 00:00:35]} {[%emt 00:00:59]} 38. Qxd3 {[%clk
00:02:37]} {[%emt 00:03:21]} exd3 {[%clk 00:01:04]} {[%emt 00:00:01]} 39. Rd1
{[%clk 00:02:50]} {[%emt 00:00:16]} Bc3 {[%clk 00:00:46]} {[%emt 00:00:49]} 40.
Rxd3 {[%clk 00:00:58]} {[%emt 00:02:22]} Bxb4 {[%clk 00:01:10]} {[%emt
00:00:04]} 41. Kg2 {[%clk 00:01:07]} {[%emt 00:00:22]} Rc7 {[%clk 00:26:17]}
{[%emt 00:05:24]} 42. Rd6 {[%clk 00:29:48]} {[%emt 00:01:48]} Bxc5 {[%clk
00:19:13]} {[%emt 00:07:35]} 43. Bxc5 {[%clk 00:30:12]} {[%emt 00:00:06]} Rxc5
{[%clk 00:19:36]} {[%emt 00:00:07]} 44. Rxe6 {[%clk 00:30:39]} {[%emt
00:00:02]} h5 {[%clk 00:11:40]} {[%emt 00:08:26]} 45. Rb6 {[%clk 00:28:25]}
{[%emt 00:02:43]} g5 {[%clk 00:09:35]} {[%emt 00:02:35]} 46. hxg5 {[%clk
00:27:42]} {[%emt 00:01:14]} Rxg5 {[%clk 00:10:00]} {[%emt 00:00:04]} 47. Kh3
{[%clk 00:27:57]} {[%emt 00:00:14]} Kg7 {[%clk 00:10:18]} {[%emt 00:00:13]} 48.
Kh4 {[%clk 00:27:56]} {[%emt 00:00:30]} Rc5 {[%clk 00:09:06]} {[%emt 00:01:43]}
49. g4 {[%clk 00:27:57]} {[%emt 00:00:29]} hxg4 {[%clk 00:08:53]} {[%emt
00:00:43]} 50. Kxg4 {[%clk 00:28:24]} {[%emt 00:00:03]} Kf7 {[%clk 00:09:20]}
{[%emt 00:00:04]} 51. Kf4 {[%clk 00:28:52]} {[%emt 00:00:02]} Ke7 {[%clk
00:09:41]} {[%emt 00:00:09]} 52. Ke4 {[%clk 00:29:18]} {[%emt 00:00:03]} Kd7
{[%clk 00:10:07]} {[%emt 00:00:06]} 53. Kd4 {[%clk 00:29:39]} {[%emt 00:00:08]}
Rh5 {[%clk 00:08:40]} {[%emt 00:01:57]} 54. Ke4 {[%emt 00:00:16]} 1/2-1/2